Workbook

Sheet Лист1
B1: Министерство образования и науки Республики Татарстан
B3: ПРИМЕРНОЕ ДВУХНЕДЕЛЬНОЕ МЕНЮ ДЛЯ ОБУЧАЮЩИХСЯ В ОБЩЕОБРАЗОВАТЕЛЬНЫХ ОРГАНИЗАЦИЯХ С 1-4 КЛАССЫ
S4: ЗИМНИЙ СЕЗОН
A5: № рецептуры | B5: Наименование блюд | G5: Выход | H5: Белки, г | I5: Жиры, г | K5: Углеводы, г | M5: Калорийность, ккал | O5: Витамин B1, мг | P5: Витамин С, мг | R5: Витамин А, мг | T5: Витамин Е, мг | V5: Ca, мг | W5: P, мг | X5: Mg, мг | Y5: Fe, мг
B6: 1-ая неделя
B7: 1 день
A8: № 62 Сбор.рец. На прод-ию для обуч. Во всех образ.учреж-Дели 2015 | B8: САЛАТ ИЗ МОРКОВИ С САХАРОМ | G8: 60 | H8: 0.516 | I8: 2.132 | K8: 4.450 | M8: 50 | O8: 0.029 | P8: 13.430 | T8: 0.234 | V8: 23.302 | W8: 10.850 | X8: 2.468 | Y8: 0.158
A9: № 266 Сбор.рец. На прод-ию для обуч. Во всех образ.учреж-Дели 2015 | B9: БИФШТЕКС РУБЛЕНЫЙ | G9: 80 | H9: 8.320 | I9: 7.150 | M9: 200 | O9: 0.040 | T9: 1.343 | V9: 11.010 | W9: 127.020 | X9: 6.000 | Y9: 1.100
A10: № 303 Сбор.рец. На прод-ию для обуч. Во всех образ.учреж-Дели 2015 | B10: КАША ВЯЗКАЯ (ГРЕЧНЕВАЯ) | G10: 150 | H10: 6.662 | I10: 9.024 | K10: 34.000 | M10: 170 | O10: 0.292 | P10: - | T10: 0.518 | V10: 37.352 | W10: 170.553 | X10: 44.550 | Y10: 1.101
A11: № 378 Сбор.рец. На прод-ию для обуч. Во всех образ.учреж-Дели 2015 | B11: ЧАЙ С МОЛОКОМ | G11: 150/50/15 | H11: 1.52 | I11: 1.35 | K11: 15.900 | M11: 81 | O11: 0.04 | P11: 1.33 | R11: 0.16 | T11: - | V11: 136.600 | W11: 92.8 | X11: 5.4 | Y11: 0.110
B12: ХЛЕБ ПШЕНИНИЧНЫЙ | G12: 30 | H12: 2.280 | I12: 0.240 | K12: 14.760 | M12: 71 | O12: 0.033 | P12: - | R12: - | T12: 0.330 | V12: 6.000 | W12: 19.500 | X12: 4.200 | Y12: 0.330
B13: ХЛЕБ РЖАНОЙ (РЖАНО-ПШЕНИЧНЫЙ) | G13: 20 | H13: 1.000 | I13: 0.200 | K13: 9.000 | M13: 44 | O13: 0.014 | P13: - | R13: - | T13: 0.108 | V13: 2.760 | W13: 12.720 | X13: 3.000 | Y13: 0.372
B14: Итого: | H14: =SUM(H8:H13) -> 20.298 | I14: =SUM(I8:I13) -> 20.096 | K14: =SUM(K8:K13) -> 78.110 | M14: =SUM(M8:M13) -> 616 | O14: =SUM(O8:O13) -> 0.448 | P14: =SUM(P8:P13) -> 14.760 | R14: =SUM(R10:R13) -> 0.16 | T14: =SUM(T8:T13) -> 2.533 | V14: =SUM(V8:V13) -> 217.024 | W14: =SUM(W8:W13) -> 433.443 | X14: =SUM(X8:X13) -> 65.618 | Y14: =SUM(Y8:Y13) -> 3.171
B15: 2 день
A16: №45 Сбор.рец. На прод-ию для обуч. Во всех образ.учреж-Дели 2015 | B16: САЛАТ ИЗ БЕЛОКОЧАННОЙ КАПУСТЫ | G16: 60 | H16: 0.780 | I16: 1.940 | K16: 3.870 | M16: 36 | O16: 0.013 | P16: 6.250 | R16: - | T16: 0.060 | V16: 16.980 | W16: 46.980 | X16: 6.050 | Y16: 0.270 | AI16: 2 ВАРИАНТ (НОЯБРЬ, ДЕКАБРЬ)
A17: № 289 Сбор.рец. На прод-ию для обуч. Во всех образ.учреж-Дели 2015 | B17: РАГУ ИЗ ПТИЦЫ | G17: 50/150 | H17: 12.300 | I17: 17.660 | K17: 29.850 | M17: 313 | O17: 0.201 | P17: 8.076 | R17: 0.180 | T17: 2.100 | V17: 57.660 | W17: 201.911 | X17: 26.394 | Y17: 0.111
A18: № 382 Сбор.рец. На прод-ию для обуч. Во всех образ.учреж-Дели 2015 | B18: КАКАО С МОЛОКОМ | G18: 200 | H18: 3.780 | I18: 0.670 | K18: 26.000 | M18: 125 | O18: 0.020 | P18: 1.330 | T18: 0.012 | V18: 133.330 | W18: 111.110 | X18: 25.560 | Y18: 2.000
B19: ХЛЕБ ПШЕНИНИЧНЫЙ | G19: 30 | H19: 2.280 | I19: 0.240 | K19: 14.760 | M19: 71 | O19: 0.033 | P19: - | R19: - | T19: 0.330 | V19: 6.000 | W19: 19.500 | X19: 4.200 | Y19: 0.330
B20: ХЛЕБ РЖАНОЙ (РЖАНО-ПШЕНИЧНЫЙ) | G20: 20 | H20: 1.000 | I20: 0.200 | K20: 9.000 | M20: 44 | O20: 0.014 | P20: - | R20: - | T20: 0.108 | V20: 2.760 | W20: 12.720 | X20: 3.000 | Y20: 0.372
B21: Итого: | H21: =SUM(H16:H20) -> 20.140 | I21: =SUM(I16:J20) -> 20.710 | K21: =SUM(K16:L20) -> 83.480 | M21: =SUM(M16:N20) -> 589 | O21: =SUM(O16:O20) -> 0.281 | P21: =SUM(P16:P20) -> 15.656 | R21: =SUM(R17:R20) -> 0.2 | T21: =SUM(T16:T20) -> 2.610 | V21: =SUM(V16:V20) -> 216.73 | W21: =SUM(W16:W20) -> 392.221 | X21: =SUM(X16:X20) -> 65.204 | Y21: =SUM(Y16:Y20) -> 3.083
B22: 3 день
A23: № 52 Сбор.рец. На прод-ию для обуч. Во всех образ.учреж-Дели 2015 | B23: САЛАТ ИЗ СВЕКЛЫ ОТВАРНОЙ | G23: 60 | H23: 0.855 | I23: 3.653 | K23: 11.580 | M23: 56 | O23: 0.011 | P23: 7.700 | T23: 0.641 | V23: 121.090 | W23: 84.582 | X23: 12.540 | Y23: 0.198
A24: № 256 Сбор.рец. На прод-ию для обуч. Во всех образ.учреж-Дели 2015 | B24: МЯСО ТУШЕНОЕ | G24: 50/50 | H24: 10.500 | I24: 11.030 | K24: 3.184 | M24: 196 | O24: 0.140 | P24: 3.890 | T24: 0.363 | V24: 66.806 | W24: 215.174 | X24: 30.164 | Y24: 1.430
A25: № 203 Сбор.рец. На прод-ию для обуч. Во всех образ.учреж-Дели 2015 | B25: МАКАРОННЫЕ ИЗДЕЛИЯ ОТВАРНЫЕ С МАСЛОМ | G25: 150/5 | H25: 5.100 | I25: 4.468 | K25: 28.500 | M25: 187 | O25: 0.087 | P25: - | R25: 0.100 | T25: 0.816 | V25: 16.457 | W25: 57.009 | X25: 8.479 | Y25: 0.869
A26: № 377 Сбор.рец. На прод-ию для обуч. Во всех образ.учреж-Дели 2015 | B26: ЧАЙ С ЛИМОНОМ | G26: 200/15/7 | H26: 0.084 | I26: 0.012 | K26: 15.185 | M26: 62 | O26: 0.003 | P26: 2.800 | T26: 0.014 | V26: 3.250 | W26: 1.540 | X26: 0.840 | Y26: 0.087
B27: ХЛЕБ ПШЕНИНИЧНЫЙ | G27: 30 | H27: 2.280 | I27: 0.240 | K27: 14.760 | M27: 71 | O27: 0.033 | P27: - | R27: - | T27: 0.330 | V27: 6.000 | W27: 19.500 | X27: 4.200 | Y27: 0.330
B28: ХЛЕБ РЖАНОЙ (РЖАНО-ПШЕНИЧНЫЙ) | G28: 20 | H28: 1.000 | I28: 0.200 | K28: 9.000 | M28: 44 | O28: 0.014 | P28: - | R28: - | T28: 0.108 | V28: 2.760 | W28: 12.720 | X28: 3.000 | Y28: 0.372
B29: Итого: | H29: =SUM(H23:H28) -> 19.819 | I29: =SUM(I23:J28) -> 19.603 | K29: =SUM(K23:L28) -> 82.209 | M29: =SUM(M23:N28) -> 616 | O29: =SUM(O23:O28) -> 0.288 | P29: =SUM(P23:P28) -> 14.39 | R29: =SUM(R25:R28) -> 0.1 | T29: =SUM(T23:T28) -> 2.27 | V29: =SUM(V23:V28) -> 216.363 | W29: =SUM(W23:W28) -> 390.53 | X29: =SUM(X23:X28) -> 59.223 | Y29: =SUM(Y23:Y28) -> 3.286
B30: 4 день
A31: № 56 Сбор.рец. На прод-ию для обуч. Во всех образ.учреж-Дели 2015 | B31: САЛАТ ОВОЩНОЙ С ЯБЛОКАМИ | G31: 60 | H31: 3.500 | I31: 6.110 | K31: 9.900 | M31: 124 | O31: 0.010 | P31: 11.310 | R31: - | T31: 0.400 | V31: 126.880 | W31: 120.410 | X31: 41.330 | Y31: 1.900
A32: № 295 Сбор.рец. На прод-ию для обуч. Во всех образ.учреж-Дели 2015 | B32: КОТЛЕТЫ РУБЛЕННЫЕ ИЗ БРОЙЛЕР-ЦЫПЛЯТ | G32: 80 | H32: 10.240 | I32: 5.370 | K32: 19.360 | N32: 159 | O32: 0.080 | P32: 0.000 | T32: - | V32: 89.430 | W32: 158.000 | X32: 0.640 | Y32: 0.300
A33: № 312 Сбор.рец. На прод-ию для обуч. Во всех образ.учреж-Дели -2015 | B33: ПЮРЕ КАРТОФЕЛЬНОЕ | G33: 150 | H33: 3.090 | I33: 8.282 | K33: 22 | M33: 172 | O33: 0.164 | P33: 7.943 | R33: 0.080 | T33: 3.000 | V33: 47.805 | W33: 98.835 | X33: 8.000 | Y33: 0.000
A34: № 376 Сбор.рец. На прод-ию для обуч. Во всех образ.учреж-Дели 2015 | B34: ЧАЙ С САХАРОМ | G34: 200/15 | H34: 0.53 | I34: - | K34: 9.470 | M34: 40 | O34: - | P34: 0.27 | R34: - | T34: - | V34: 13.600 | W34: 22.13 | X34: 11.73 | Y34: 0.100
B35: ХЛЕБ ПШЕНИНИЧНЫЙ | G35: 30 | H35: 2.280 | I35: 0.240 | K35: 14.760 | M35: 71 | O35: 0.033 | P35: - | R35: - | T35: 0.330 | V35: 6.000 | W35: 19.500 | X35: 4.200 | Y35: 0.330
B36: ХЛЕБ РЖАНОЙ (РЖАНО-ПШЕНИЧНЫЙ) | G36: 20 | H36: 1.000 | I36: 0.200 | K36: 9.000 | M36: 44 | O36: 0.014 | P36: - | R36: - | T36: 0.108 | V36: 2.760 | W36: 12.720 | X36: 3.000 | Y36: 0.372
B37: Итого: | H37: =SUM(H31:H36) -> 20.640 | I37: =SUM(I31:I36) -> 20.202 | K37: =SUM(K31:K36) -> 84.557 | M37: =M31+N32+M33+M34+M35+M36 -> 610 | O37: =SUM(O31:O36) -> 0.30 | P37: 15.523 | R37: =SUM(R32:R36) -> 0.1 | T37: 3.100 | V37: =SUM(V31:V36) -> 286.475 | W37: =SUM(W31:W36) -> 431.595 | X37: 65.900 | Y37: =SUM(Y31:Y36) -> 3.002
B38: 5 день
A39: № 59 Сбор.рец. На прод-ию для обуч. Во всех образ.учреж-Дели 2015 | B39: САЛАТ ИЗ МОРКОВИ С ЯБЛОКАМИ | G39: 60 | H39: 0.660 | I39: 0.120 | K39: 2.280 | M39: 14 | O39: 0.036 | P39: 10.000 | R39: - | T39: 0.420 | V39: 8.400 | W39: 15.600 | X39: 12.000 | Y39: 0.340
A40: № 268 Сбор.рец. На прод-ию для обуч. Во всех образ.учреж-Дели 2015 | B40: КОТЛЕТЫ | G40: 80 | H40: 9.660 | I40: 12.412 | K40: 9.450 | M40: 182 | O40: 0.166 | P40: 3.861 | R40: - | T40: 1.384 | V40: 54.974 | W40: 155.026 | X40: 21.930 | Y40: 1.678
A41: № 304 Сбор.рец. На прод-ию для обуч. Во всех образ.учреж-Дели 2015 | B41: РИС ОТВАРНОЙ | G41: 150 | H41: 3.834 | I41: 5.434 | K41: 29.600 | M41: 210 | O41: 0.044 | P41: - | R41: 0.180 | T41: 0.284 | V41: 11.460 | W41: 84.150 | X41: 13.330 | Y41: 0.010
A42: № 378 Сбор.рец. На прод-ию для обуч. Во всех образ.учреж-Дели 2015 | B42: ЧАЙ С МОЛОКОМ | G42: 150/50/15 | H42: 1.52 | I42: 1.35 | K42: 15.900 | M42: 81 | O42: 0.04 | P42: 1.33 | R42: 0.16 | T42: - | V42: 136.600 | W42: 92.8 | X42: 5.4 | Y42: 0.110
B43: ХЛЕБ ПШЕНИНИЧНЫЙ | G43: 30 | H43: 2.280 | I43: 0.240 | K43: 14.760 | M43: 71 | O43: 0.033 | P43: - | R43: - | T43: 0.330 | V43: 6.000 | W43: 19.500 | X43: 4.200 | Y43: 0.330
B44: ХЛЕБ РЖАНОЙ (РЖАНО-ПШЕНИЧНЫЙ) | G44: 20 | H44: 1.000 | I44: 0.200 | K44: 9.000 | M44: 44 | O44: 0.014 | P44: - | R44: - | T44: 0.108 | V44: 2.760 | W44: 12.720 | X44: 3.000 | Y44: 0.372
B45: Итого: | H45: =SUM(H39:H44) -> 18.954 | I45: =SUM(I39:I44) -> 19.756 | K45: =SUM(K39:K44) -> 80.990 | M45: =SUM(M39:M44) -> 602 | O45: =SUM(O39:O44) -> 0.3 | P45: =SUM(P39:P44) -> 15.191 | R45: =SUM(R41:R44) -> 0.34 | T45: =SUM(T39:T44) -> 2.526 | V45: =SUM(V39:V44) -> 220.194 | W45: =SUM(W39:W44) -> 379.796 | X45: =SUM(X39:X44) -> 59.86 | Y45: =SUM(Y39:Y44) -> 2.840
B46: 6 день
A47: № 338 Сбор.рец. На прод-ию для обуч. Во всех образ.учреж-Дели 2015 | B47: ПЛОДЫ И ЯГОДЫ СВЕЖИЕ (ЯБЛОКИ) | G47: 100 | H47: 0.400 | I47: 0.400 | K47: 7.350 | M47: 47 | O47: 0.030 | P47: 8.000 | R47: - | T47: 0.100 | V47: 16.000 | W47: 11.000 | X47: 9.000 | Y47: 0.030
A48: № 47 Сбор.рец. На прод-ию для обуч. Во всех образ.учреж-Дели 2015 | B48: САЛАТ ИЗ КВАШЕНОЙ КАПУСТЫ | G48: 60 | H48: 2.600 | I48: 5.058 | K48: 4.944 | M48: 56 | O48: 0.013 | P48: 5.180 | R48: - | T48: 1.381 | V48: 25.278 | W48: 18.606 | X48: 8.616 | Y48: 0.010
A49: № 392 Сбор.рец. На прод-ию для обуч. Во всех образ.учреж-Дели 2015 | B49: ПЕЛЬМЕНИ МЯСНЫЕ ОТВАРНЫЕ | G49: 180/5 | H49: 10.340 | I49: 12.175 | K49: 20.340 | M49: 237 | O49: 0.159 | P49: 0.491 | R49: 0.180 | T49: 1.283 | V49: 79.453 | W49: 239.018 | X49: 10.579 | Y49: 0.010
A50: № 379 Сбор.рец. На прод-ию для обуч. Во всех образ.учреж-Дели 2015 | B50: КОФЕЙНЫЙ НАПИТОК С МОЛОКОМ | G50: 200 | H50: 3.600 | I50: 2.670 | K50: 29.200 | M50: 155 | O50: 0.030 | P50: 1.470 | V50: 158.670 | W50: 132.000 | X50: 29.330 | Y50: 2.400
B51: ХЛЕБ ПШЕНИНИЧНЫЙ | G51: 30 | H51: 2.280 | I51: 0.240 | K51: 14.760 | M51: 71 | O51: 0.033 | P51: - | R51: - | T51: 0.330 | V51: 6.000 | W51: 19.500 | X51: 4.200 | Y51: 0.330
B52: ХЛЕБ РЖАНОЙ (РЖАНО-ПШЕНИЧНЫЙ) | G52: 20 | H52: 1.000 | I52: 0.200 | K52: 9.000 | M52: 44 | O52: 0.014 | P52: - | R52: - | T52: 0.108 | V52: 2.760 | W52: 12.720 | X52: 3.000 | Y52: 0.372
B53: Итого: | H53: =SUM(H47:H52) -> 20.220 | I53: =SUM(I47:I52) -> 20.743 | K53: =SUM(K47:K52) -> 85.594 | M53: =SUM(M47:M52) -> 610 | O53: =SUM(O47:O52) -> 0.279 | P53: =SUM(P47:P52) -> 15.141 | R53: =SUM(R49:R52) -> 0.180 | T53: =SUM(T47:T52) -> 3 | V53: =SUM(V47:V52) -> 288.161 | W53: =SUM(W47:W52) -> 432.844 | X53: =SUM(X47:X52) -> 64.725 | Y53: =SUM(Y47:Y52) -> 3.152
B65: Министерство образования и науки Республики Татарстан
B66: ПРИМЕРНОЕ ДВУХНЕДЕЛЬНОЕ МЕНЮ ДЛЯ ОБУЧАЮЩИХСЯ В ОБЩЕОБРАЗОВАТЕЛЬНЫХ ОРГАНИЗАЦИЯХ С 1-4 КЛАССЫ
B67: ЗИМНИЙ СЕЗОН
A68: № РЕЦЕПТУР | B68: Наименование блюд | G68: Выход | H68: Белки, г | I68: Жиры, г | K68: Углеводы, г | M68: Калорийность, ккал | O68: Витамин B1, мг | P68: Витамин С, мг | R68: Витамин А, мг | T68: Витамин Е, мг | V68: Ca, мг | W68: P, мг | X68: Mg, мг | Y68: Fe, мг
B69: 2-ая неделя
B70: 1 день
A71: № 338 Сбор.рец. На прод-ию для обуч. Во всех образ.учреж-Дели 2015 | B71: ПЛОДЫ И ЯГОДЫ СВЕЖИЕ (АПЕЛЬСИНЫ) | G71: 100 | H71: 0.400 | I71: 0.400 | K71: 7.350 | M71: 47 | O71: 0.030 | P71: 8.000 | R71: - | T71: 0.200 | V71: 46.000 | W71: 11.000 | X71: 0.100 | Y71: 0.000
A72: №45 Сбор.рец. На прод-ию для обуч. Во всех образ.учреж-Дели 2015 | B72: САЛАТ ИЗ БЕЛОКОЧАННОЙ КАПУСТЫ | G72: 60 | H72: 0.780 | I72: 1.940 | K72: 3.870 | M72: 36 | O72: 0.013 | P72: 6.250 | R72: - | T72: 0.060 | V72: 16.980 | W72: 46.980 | X72: 6.050 | Y72: 0.270
A73: № 280 Сбор.рец. На прод-ию для обуч. Во всех образ.учреж-Дели -2015 | B73: ФРИКАДЕЛЬКИ В СОУСЕ | G73: 55/50 | H73: 8.330 | I73: 7.743 | K73: 3.194 | M73: 175 | O73: 0.030 | P73: 0.650 | R73: 0.1 | T73: 1.256 | V73: 100.530 | W73: 110.071 | X73: 0.077 | Y73: 1.000
A74: № 171 Сбор.рец. На прод-ию для обуч. Во всех образ.учреж-Дели 2015 | B74: КАША РАССЫПЧАТАЯ (ГРЕЧНЕВАЯ) | G74: 150 | H74: 6.662 | I74: 9.024 | K74: 34.000 | M74: 170 | O74: 0.292 | P74: - | T74: 0.518 | V74: 37.352 | W74: 170.553 | X74: 40.550 | Y74: 1.101
A75: № 376 Сбор.рец. На прод-ию для обуч. Во всех образ.учреж-Дели 2015 | B75: ЧАЙ С САХАРОМ | G75: 200/15 | H75: 0.53 | I75: - | K75: 9.470 | M75: 40 | O75: - | P75: 0.27 | R75: - | T75: - | V75: 13.600 | W75: 22.13 | X75: 11.73 | Y75: 0.100
B76: ХЛЕБ ПШЕНИНИЧНЫЙ | G76: 30 | H76: 2.280 | I76: 0.240 | K76: 14.760 | M76: 71 | O76: 0.033 | P76: - | R76: - | T76: 0.330 | V76: 6.000 | W76: 19.500 | X76: 4.200 | Y76: 0.330
B77: ХЛЕБ РЖАНОЙ (РЖАНО-ПШЕНИЧНЫЙ) | G77: 20 | H77: 1.000 | I77: 0.200 | K77: 9.000 | M77: 44 | O77: 0.014 | P77: - | R77: - | T77: 0.108 | V77: 2.760 | W77: 12.720 | X77: 3.000 | Y77: 0.372
B78: Итого: | H78: =SUM(H71:H77) -> 19.982 | I78: =SUM(I71:I77) -> 19.547 | K78: =SUM(K71:K77) -> 81.644 | M78: =SUM(M71:M77) -> 583 | O78: =SUM(O71:O77) -> 0.41 | P78: =SUM(P71:P77) -> 15.170 | R78: =SUM(R73:R77) -> 0.1 | T78: =SUM(T71:T77) -> 2.472 | V78: =SUM(V71:V77) -> 223.222 | W78: =SUM(W71:W77) -> 392.954 | X78: =SUM(X71:X77) -> 65.7 | Y78: =SUM(Y71:Y77) -> 3.17
B79: 2 день
A80: № 52 Сбор.рец. На прод-ию для обуч. Во всех образ.учреж-Дели 2015 | B80: САЛАТ ИЗ СВЕКЛЫ ОТВАРНОЙ | G80: 60 | H80: 0.855 | I80: 3.653 | K80: 11.580 | M80: 56 | O80: 0.011 | P80: 7.700 | T80: 0.641 | V80: 121.090 | W80: 84.582 | X80: 12.540 | Y80: 0.198
A81: № 291 Сбор.рец. На прод-ию для обуч. Во всех образ.учреж-Дели -2015 | B81: ПЛОВ ИЗ ПТИЦЫ | G81: 50/150 | H81: 14.510 | I81: 14.710 | K81: 28.340 | M81: 364 | O81: 0.210 | P81: 4.900 | R81: 0.100 | T81: 1.200 | V81: 83.070 | W81: 273.000 | X81: 40.450 | Y81: 1.900
A82: № 377 Сбор.рец. На прод-ию для обуч. Во всех образ.учреж-Дели 2015 | B82: ЧАЙ С ЛИМОНОМ | G82: 200/15/7 | H82: 0.084 | I82: 0.012 | K82: 15.185 | M82: 62 | O82: 0.003 | P82: 2.800 | T82: 0.014 | V82: 3.250 | W82: 1.540 | X82: 0.840 | Y82: 0.087
B83: ХЛЕБ ПШЕНИНИЧНЫЙ | G83: 30 | H83: 2.280 | I83: 0.240 | K83: 14.760 | M83: 71 | O83: 0.033 | P83: - | R83: - | T83: 0.330 | V83: 6.000 | W83: 19.500 | X83: 4.200 | Y83: 0.330
B84: ХЛЕБ РЖАНОЙ (РЖАНО-ПШЕНИЧНЫЙ) | G84: 20 | H84: 1.000 | I84: 0.200 | K84: 9.000 | M84: 44 | O84: 0.014 | P84: - | R84: - | T84: 0.108 | V84: 2.760 | W84: 12.720 | X84: 3.000 | Y84: 0.372
B85: Итого: | H85: =SUM(H80:H84) -> 18.729 | I85: =SUM(I80:I84) -> 18.815 | K85: =SUM(K80:K84) -> 78.865 | M85: =SUM(M80:M84) -> 597 | O85: =SUM(O80:O84) -> 0.27 | P85: =SUM(P80:P84) -> 15.4 | R85: =SUM(R81:R84) -> 0.1 | T85: =SUM(T80:T84) -> 2.293 | V85: =SUM(V80:V84) -> 216.17 | W85: =SUM(W80:W84) -> 391.34 | X85: =SUM(X80:X84) -> 61.03 | Y85: =SUM(Y80:Y84) -> 2.887
B86: 3 день
A87: № 47 Сбор.рец. На прод-ию для обуч. Во всех образ.учреж-Дели 2015 | B87: САЛАТ ИЗ КВАШЕНОЙ КАПУСТЫ | G87: 60 | H87: 2.600 | I87: 5.058 | K87: 4.944 | M87: 56 | O87: 0.013 | P87: 5.180 | R87: - | T87: 1.381 | V87: 25.278 | W87: 18.606 | X87: 8.616 | Y87: 0.010
A88: № 234 Сбор.рец. На прод-ию для обуч. Во всех образ.учреж-Дели -2015 | B88: БИТОЧКИ РЫБНЫЕ | G88: 80 | H88: 6.450 | I88: 4.240 | K88: 7.49 | M88: 116 | O88: 0.050 | P88: 0.480 | R88: 0.100 | T88: 0.646 | V88: 44.020 | W88: 137.060 | X88: 12.000 | Y88: 0.000
A89: № 312 Сбор.рец. На прод-ию для обуч. Во всех образ.учреж-Дели -2015 | B89: ПЮРЕ КАРТОФЕЛЬНОЕ | G89: 150 | H89: 3.090 | I89: 8.282 | K89: 22 | M89: 172 | O89: 0.164 | P89: 7.943 | R89: 0.080 | T89: 0.231 | V89: 47.805 | W89: 98.835 | X89: 8.000 | Y89: 0.000
A90: № 379 Сбор.рец. На прод-ию для обуч. Во всех образ.учреж-Дели 2015 | B90: КОФЕЙНЫЙ НАПИТОК С МОЛОКОМ | G90: 200 | H90: 3.600 | I90: 2.670 | K90: 29.200 | M90: 155 | O90: 0.030 | P90: 1.470 | V90: 158.670 | W90: 132.000 | X90: 29.330 | Y90: 2.400
B91: ХЛЕБ ПШЕНИНИЧНЫЙ | G91: 30 | H91: 2.280 | I91: 0.240 | K91: 14.760 | M91: 71 | O91: 0.033 | P91: - | R91: - | T91: 0.330 | V91: 6.000 | W91: 19.500 | X91: 4.200 | Y91: 0.330
B92: ХЛЕБ РЖАНОЙ (РЖАНО-ПШЕНИЧНЫЙ) | G92: 20 | H92: 1.000 | I92: 0.200 | K92: 9.000 | M92: 44 | O92: 0.014 | P92: - | R92: - | T92: 0.108 | V92: 2.760 | W92: 12.720 | X92: 3.000 | Y92: 0.372
B93: Итого: | H93: =SUM(H87:H92) -> 19.020 | I93: =SUM(I87:I92) -> 20.690 | K93: =SUM(K87:K92) -> 87.461 | M93: =SUM(M87:M92) -> 614 | O93: =SUM(O87:O92) -> 0.304 | P93: =SUM(P87:P92) -> 15.073 | R93: =SUM(R88:R92) -> 0.18 | T93: =SUM(T87:T92) -> 2.696 | V93: =SUM(V87:V92) -> 284.533 | W93: =SUM(W87:W92) -> 418.721 | X93: =SUM(X87:X92) -> 65.146 | Y93: =SUM(Y87:Y92) -> 3.112
B94: 4 день
A95: № 62 Сбор.рец. На прод-ию для обуч. Во всех образ.учреж-Дели 2015 | B95: САЛАТ ИЗ МОРКОВИ С САХАРОМ | G95: 60 | H95: 0.516 | I95: 2.132 | K95: 4.450 | M95: 50 | O95: 0.029 | P95: 13.430 | T95: 0.234 | V95: 23.302 | W95: 10.850 | X95: 2.468 | Y95: 0.158
A96: № 243 Сбор.рец. На прод-ию для обуч. Во всех образ.учреж-Дели -2015 | B96: СОСИСКИ ОТВАРНЫЕ | G96: 100 | H96: 7.400 | I96: 10.900 | K96: 0.800 | M96: 108 | O96: 0.030 | P96: - | R96: - | T96: 1.000 | V96: 35.000 | W96: 139.001 | X96: 16.000
A97: № 203 Сбор.рец. На прод-ию для обуч. Во всех образ.учреж-Дели 2015 | B97: МАКАРОННЫЕ ИЗДЕЛИЯ ОТВАРНЫЕ С МАСЛОМ | G97: 150/5 | H97: 5.100 | I97: 4.468 | K97: 28.500 | M97: 187 | O97: 0.087 | P97: - | R97: 0.100 | T97: 0.816 | V97: 16.457 | W97: 57.009 | X97: 8.479 | Y97: 0.869
A98: № 382 Сбор.рец. На прод-ию для обуч. Во всех образ.учреж-Дели 2015 | B98: КАКАО С МОЛОКОМ | G98: 200 | H98: 3.780 | I98: 0.670 | K98: 26.000 | M98: 125 | O98: 0.020 | P98: 1.330 | T98: 0.012 | V98: 133.330 | W98: 111.110 | X98: 25.560 | Y98: 2.000
B99: ХЛЕБ ПШЕНИНИЧНЫЙ | G99: 30 | H99: 2.280 | I99: 0.240 | K99: 14.760 | M99: 71 | O99: 0.033 | P99: - | R99: - | T99: 0.330 | V99: 6.000 | W99: 19.500 | X99: 4.200 | Y99: 0.330
B100: ХЛЕБ РЖАНОЙ (РЖАНО-ПШЕНИЧНЫЙ) | G100: 20 | H100: 1.000 | I100: 0.200 | K100: 9.000 | M100: 44 | O100: 0.014 | P100: - | R100: - | T100: 0.108 | V100: 2.760 | W100: 12.720 | X100: 3.000 | Y100: 0.372
B101: Итого: | H101: =SUM(H95:H100) -> 20.076 | I101: =SUM(I95:I100) -> 18.610 | K101: =SUM(K95:K100) -> 83.510 | M101: =SUM(M95:M100) -> 585 | O101: =SUM(O95:O100) -> 0.213 | P101: =SUM(P95:P100) -> 14.76 | R101: =SUM(R97:R100) -> 0.1 | T101: =SUM(T95:T100) -> 2.5 | V101: =SUM(V95:V100) -> 216.849 | W101: =SUM(W95:W100) -> 350.19 | X101: =SUM(X95:X100) -> 59.707 | Y101: =SUM(Y95:Y100) -> 3.7
B102: 5 день
A103: № 52 Сбор.рец. На прод-ию для обуч. Во всех образ.учреж-Дели 2015 | B103: САЛАТ ИЗ СВЕКЛЫ ОТВАРНОЙ | G103: 60 | H103: 0.855 | I103: 3.653 | K103: 11.580 | M103: 56 | O103: 0.011 | P103: 7.700 | T103: 0.641 | V103: 121.090 | W103: 84.582 | X103: 12.540 | Y103: 0.198
A104: № 290 Сбор.рец. На прод-ию для обуч. Во всех образ.учреж-Дели -2015 | B104: ПТИЦА ТУШЕННАЯ В СОУСЕ | G104: 50/50 | H104: 11.650 | I104: 10.756 | K104: 11.632 | M104: 164 | O104: 0.168 | P104: 6.326 | T104: 0.956 | V104: 85.185 | W104: 163.198 | X104: 15.716 | Y104: 1.800
A105: № 304 Сбор.рец. На прод-ию для обуч. Во всех образ.учреж-Дели 2015 | B105: РИС ОТВАРНОЙ | G105: 150 | H105: 3.834 | I105: 5.434 | K105: 29.600 | M105: 210 | O105: 0.044 | P105: - | R105: 0.180 | T105: 0.284 | V105: 11.460 | W105: 84.150 | X105: 13.330 | Y105: 0.010
A106: № 376 Сбор.рец. На прод-ию для обуч. Во всех образ.учреж-Дели 2015 | B106: ЧАЙ С САХАРОМ | G106: 200/15 | H106: 0.53 | I106: - | K106: 9.470 | M106: 40 | O106: - | P106: 0.27 | R106: - | T106: - | V106: 13.600 | W106: 22.13 | X106: 11.73 | Y106: 0.100
B107: ХЛЕБ ПШЕНИНИЧНЫЙ | G107: 30 | H107: 2.280 | I107: 0.240 | K107: 14.760 | M107: 71 | O107: 0.033 | P107: - | R107: - | T107: 0.330 | V107: 6.000 | W107: 19.500 | X107: 4.200 | Y107: 0.330
B108: ХЛЕБ РЖАНОЙ (РЖАНО-ПШЕНИЧНЫЙ) | G108: 20 | H108: 1.000 | I108: 0.200 | K108: 9.000 | M108: 44 | O108: 0.014 | P108: - | R108: - | T108: 0.108 | V108: 2.760 | W108: 12.720 | X108: 3.000 | Y108: 0.372
B109: Итого: | H109: =SUM(H103:H108) -> 20.149 | I109: =SUM(I103:I108) -> 20.283 | K109: =SUM(K103:K108) -> 86.042 | M109: =SUM(M103:M108) -> 585 | O109: =SUM(O103:O108) -> 0.27 | P109: =SUM(P103:P108) -> 14.296 | R109: =SUM(R104:R108) -> 0.18 | T109: =SUM(T103:T108) -> 2.319 | V109: =SUM(V103:V108) -> 240.095 | W109: =SUM(W103:W108) -> 386.28 | X109: =SUM(X103:X108) -> 60.516 | Y109: =SUM(Y103:Y108) -> 2.810
B110: 6 день
A111: № 338 Сбор.рец. На прод-ию для обуч. Во всех образ.учреж-Дели 2015 | B111: ПЛОДЫ И ЯГОДЫ СВЕЖИЕ (ЯБЛОКИ) | G111: 100 | H111: 0.400 | I111: 0.400 | K111: 7.350 | M111: 47 | O111: 0.030 | P111: 8.000 | R111: - | T111: 0.100 | V111: 16.000 | W111: 11.000 | X111: 9.000 | Y111: 0.030
A112: № 56 Сбор.рец. На прод-ию для обуч. Во всех образ.учреж-Дели 2015 | B112: САЛАТ ОВОЩНОЙ С ЯБЛОКАМИ | G112: 60 | H112: 3.500 | I112: 6.110 | K112: 9.900 | M112: 124 | O112: 0.010 | P112: 11.310 | R112: - | T112: 0.400 | V112: 126.880 | W112: 120.410 | X112: 41.330 | Y112: 1.900
A113: № 392 Сбор.рец. На прод-ию для обуч. Во всех образ.учреж-Дели 2015 | B113: ПЕЛЬМЕНИ МЯСНЫЕ ОТВАРНЫЕ | G113: 180/5 | H113: 10.340 | I113: 12.175 | K113: 20.340 | M113: 237 | O113: 0.159 | P113: 0.491 | R113: 0.180 | T113: 1.283 | V113: 79.453 | W113: 239.018 | X113: 10.579 | Y113: 0.010
A114: № 377 Сбор.рец. На прод-ию для обуч. Во всех образ.учреж-Дели 2015 | B114: ЧАЙ С ЛИМОНОМ | G114: 200/15/7 | H114: 0.084 | I114: 0.012 | K114: 15.185 | M114: 62 | O114: 0.003 | P114: 2.800 | T114: 0.014 | V114: 3.250 | W114: 1.540 | X114: 0.840 | Y114: 0.087
B115: ХЛЕБ ПШЕНИНИЧНЫЙ | G115: 30 | H115: 2.280 | I115: 0.240 | K115: 14.760 | M115: 71 | O115: 0.033 | P115: - | R115: - | T115: 0.330 | V115: 6.000 | W115: 19.500 | X115: 4.200 | Y115: 0.330
B116: ХЛЕБ РЖАНОЙ (РЖАНО-ПШЕНИЧНЫЙ) | G116: 20 | H116: 1.000 | I116: 0.200 | K116: 9.000 | M116: 44 | O116: 0.014 | P116: - | R116: - | T116: 0.108 | V116: 2.760 | W116: 12.720 | X116: 3.000 | Y116: 0.372
B117: Итого: | H117: =SUM(H112:H116) -> 17.20 | I117: =SUM(I112:I116) -> 18.737 | K117: =SUM(K112:K116) -> 69.185 | M117: =SUM(M112:M116) -> 538 | O117: =SUM(O112:O116) -> 0.219 | P117: =SUM(P112:P116) -> 14.601 | R117: =SUM(R113:R116) -> 0.180 | T117: =SUM(T112:T116) -> 2.135 | V117: =SUM(V112:V116) -> 218.343 | W117: =SUM(W112:W116) -> 393.188 | X117: =SUM(X112:X116) -> 59.949 | Y117: =SUM(Y112:Y116) -> 3

Sheet Лист2

Sheet Лист3
